Cogmind - Beta 15 @@@ ROGUE MODE // 2025.10.19 @ 16:01:12 Player: MAXX-P31 Result: Destroyed by B-75 Beast with Heavy Plasma Cannon Performance ------------- Evolutions (2) 1000 Regions Visited (8) 1600 Robots Destroyed (205) 1025 Value Destroyed (5541) 5541 Prototype IDs (6) 120 Alien Tech Used (0) 0 Bonus (953) 953 TOTAL SCORE: 10239 Bonus ------- High Alert Combat Kills 753 Entered Garrisons 200 Cogmind --------- Core Integrity 0/550 Matter 158/300 Energy 100/100 System Corruption 1% Temperature Cool (12) Movement Treading (160) Location -8/Garrison Parts ------- > --- POWER (1) -------- (None) > --- PROPULSION (3) --- Medium Treads Medium Treads > --- UTILITY (3) ------ High-capacity Storage Unit Target Analyzer > --- WEAPON (4) ------- Great Maul Scythe > --- INVENTORY (20) --- Light Treads Medium Treads Improved Cooling System High-capacity Storage Unit High-capacity Battery (250) Experimental Sensor Array Heavy Missile Launcher Heavy Missile Launcher Improved Datajack Peak State ------------ > --- POWER ------------ Reinforced Deuterium Engine > --- PROPULSION ------- Armored Treads Armored Treads Armored Treads > --- UTILITY ---------- Cooling System High-capacity Storage Unit Reactive Plating > --- WEAPON ----------- Improved Assault Rifle Improved Assault Rifle Gauss Rifle Gauss Rifle > --- INVENTORY -------- Improved Deuterium Engine Medium Treads Medium Treads Medium Treads Medium Treads Improved Cooling System High-capacity Storage Unit High-capacity Battery High-capacity Matter Pod Experimental Sensor Array Target Analyzer Heavy Laser Heavy Assault Rifle Improved Assault Rifle High-powered Shotgun Assault Cannon Heavy Missile Launcher Heavy Missile Launcher Great Maul Scythe [Rating: 39] Favorites ----------- Power Reinforced Ion Engine Engine Reinforced Ion Engine Propulsion Light Treads Treads Light Treads Leg Advanced Myomer Leg Wheel Compact Wheel Utility High-capacity Storage Unit Device Seismic Detector Storage High-capacity Storage Unit Processor Target Analyzer Protection Hardened Light Armor Plating Weapon Heavy Assault Rifle Energy Gun Medium Laser Ballistic Gun Heavy Assault Rifle Ballistic Cannon Assault Cannon Launcher Mini Grenade Launcher Impact Weapon Hammer Slashing Weapon Scythe Build | -11 -10 -10 -9 -9 -9 -8 -8 -8 ------- Run | Yrd Mat Min Mat Min Exi Min Mat Gar Slots Evolved 4 | . . . 2 . . . 2 . Power . | . . . . . . . . . Propulsion 1 | . . . . . . . 1 . Utility 1 | . . . . . . . 1 . Weapon 2 | . . . 2 . . . . . Parts Attached 99 | 7 11 1 29 1 8 . 28 14 Power 9 | 1 3 . 2 . . . 1 2 Engine 9 | 1 3 . 2 . . . 1 2 Core . | . . . . . . . . . Reactor . | . . . . . . . . . Propulsion 36 | 2 2 . 12 . 4 . 11 5 Treads 34 | 2 2 . 12 . 2 . 11 5 Leg 1 | . . . . . 1 . . . Wheel 1 | . . . . . 1 . . . Hover . | . . . . . . . . . Flight . | . . . . . . . . . Utility 16 | 2 1 . 4 1 1 . 6 1 Device 3 | 1 . . . 1 . . 1 . Storage 4 | 1 1 . 1 . . . 1 . Processor 2 | . . . . . 1 . 1 . Hackware . | . . . . . . . . . Protection 7 | . . . 3 . . . 3 1 Artifact . | . . . . . . . . . Weapon 38 | 2 5 1 11 . 3 . 10 6 Energy Gun 1 | 1 . . . . . . . . Energy Cannon . | . . . . . . . . . Ballistic Gun 26 | 1 4 . 9 . 1 . 7 4 Ballistic Cannon 1 | . . . . . . . 1 . Launcher 5 | . 1 1 1 . . . 2 . Special Weapon . | . . . . . . . . . Impact Weapon 4 | . . . 1 . 2 . . 1 Slashing Weapon 1 | . . . . . . . . 1 Piercing Weapon . | . . . . . . . . . Special Melee Weapon . | . . . . . . . . . Unidentified Prototypes 3 | . . . 1 1 1 . . . Parts Lost 26 | . 1 . . . 4 . 4 17 Power 4 | . 1 . . . . . . 3 Propulsion 7 | . . . . . 3 . 1 3 Utility 2 | . . . . . . . . 2 Weapon 13 | . . . . . 1 . 3 9 Highest Loss Streak 13 | . 1 . . . 4 . 3 13 To Critical Strikes 3 | . . . . . 3 . . . Average Backups 17 | 1 12 15 18 19 17 15 19 19 Power . | . . 1 1 . . . 1 . Propulsion 3 | . 2 1 4 5 4 3 3 5 Utility 4 | . 2 4 4 5 5 4 6 5 Weapon 8 | . 7 9 9 8 7 7 8 6 Tool/Special . | . . . . . . . . . Unused Backups 32 | . 2 . 7 6 3 . 6 8 Power 7 | . . . 1 2 3 . 1 . Propulsion 6 | . . . 2 1 . . 1 2 Utility 9 | . . . 1 1 . . 2 5 Weapon 9 | . 2 . 3 2 . . 2 . Tool/Special 1 | . . . . . . . . 1 Average Slot Usage (%) 99 | . 99 100 99 100 99 100 99 98 Engine 10 | . 13 14 10 11 11 11 8 8 Treads 24 | . 28 28 21 22 21 22 26 26 Device 3 | . 14 14 . . . . 3 8 Storage 10 | . 14 14 11 11 11 11 9 9 Protection 9 | . . . 10 10 7 9 14 . Ballistic Gun 36 | . 25 24 42 44 30 41 34 28 Impact Weapon 1 | . . . . . 11 2 . 3 Peak Build Rating 39 | 7 11 11 20 26 24 19 39 37 Average Rating 21 | 5 9 11 18 19 18 18 33 33 On Entrance 15 | . 7 11 11 18 20 18 19 36 Naked Turns . | . . . . . . . . . Heaviest Build 82 | 14 32 32 67 67 67 67 82 73 Greatest Support 84 | 40 40 40 40 40 40 40 76 84 Greatest Overweight (x) 12 | . . . 12 1 3 1 1 1 Average Overweight (x) . | . . . . 1 1 1 . . Largest Inventory Capacity 20 | 8 15 15 20 20 20 20 20 20 Average Capacity 18 | 6 13 15 18 20 20 20 20 20 Most Carried 20 | 3 15 15 20 20 20 16 20 20 Average Carried 17 | 1 12 15 18 19 18 15 19 19 Final Capacity 20 | 8 15 15 20 20 20 20 20 20 Final Carried 20 | 3 15 15 20 20 15 16 18 9 Class Distribution -------------------- 40% | Scavenger-Tank 31% | Tank 18% | Mutant 4% | Scavenger-Gunner Dominant Class ---------------- Mutant | -10/Materials Mutant | -10/Mines Scavenger-Tank | -9/Materials Tank | -9/Mines Tank | -9/Exiles Scavenger-Tank | -8/Mines Scavenger-Tank | -8/Materials Scavenger-Gunner | -8/Garrison Resources | -11 -10 -10 -9 -9 -9 -8 -8 -8 ----------- Run | Yrd Mat Min Mat Min Exi Min Mat Gar Matter Collected 5373 | 270 649 68 1373 210 64 155 1962 622 Remotely . | . . . . . . . . . Salvage Created 7762 | 135 996 86 2107 472 70 189 3064 643 Parts 450 | 8 55 8 140 31 . 9 155 44 Haulers Intercepted 12 | . 2 . 6 . . . 4 . Recyclers Shooed 8 | . 6 . 1 . . . 1 . Parts Field Recycled . | . . . . . . . . . Retrieved Matter . | . . . . . . . . . Parts Self-Destructed . | . . . . . . . . . Prevented . | . . . . . . . . . Kills | -11 -10 -10 -9 -9 -9 -8 -8 -8 ------- Run | Yrd Mat Min Mat Min Exi Min Mat Gar Combat Hostiles Destroyed 149 | . 16 3 35 9 6 4 56 20 Melee 1 | . . . . . 1 . . . Guns 116 | . 13 1 32 9 . 4 48 9 Cannons 3 | . . . . . . . . 3 AOE 29 | . 3 2 3 . 5 . 8 8 Classes Destroyed 21 | 2 8 1 2 1 1 . 5 1 Worker 6 | . 1 . 3 . . . 2 . Builder 4 | . 1 . 1 . . . 2 . Tunneler 5 | 2 1 . . 2 . . . . Hauler 12 | . 2 . 6 . . . 4 . Recycler 20 | 1 4 1 5 2 . 2 5 . Mechanic 4 | . 1 . 1 . . . 2 . Operator 2 | . . . . . . . 2 . Watcher 8 | . 3 . 2 . . . 3 . Swarmer 38 | . 6 2 10 4 . 4 4 8 Grunt 60 | . 8 . 14 4 . . 28 6 Brawler 5 | . . . 2 . . . 3 . Duelist 3 | . . . . 1 . . 2 . Protector 3 | . . . . . . . 3 . Sentry 24 | . . . 9 . . . 11 4 Demolisher 1 | . . 1 . . . . . . Specialist 2 | . . . . . . . 2 . Hunter 2 | . . . . . . . 2 . Programmer 2 | . . . . . . . . 2 Heavy 1 | . . . . . . . 1 . Subdweller 2 | . 2 . . . . . . . Assembled 5 | . . . . . 5 . . . Best Kill Streak 14 | 1 6 2 6 4 5 4 14 5 Combat Bots Only 14 | . 3 2 5 4 5 4 14 5 Max Kills in Single Turn 4 | 1 3 1 3 2 2 2 2 4 Gunslinging 1 | . . . 1 1 . 1 1 . Exploded 4 | . 1 1 2 . 2 . 2 4 Melee 1 | . . . . . 1 . . . Uniques/NPCs Destroyed 1 | . . . . . 1 . . . 8R-AWN (-9/Exiles) Combat | -11 -10 -10 -9 -9 -9 -8 -8 -8 -------- Run | Yrd Mat Min Mat Min Exi Min Mat Gar Hostile Shots Fired 624 | . 60 12 82 19 72 11 215 153 Missed 171 | . 16 4 17 6 23 5 52 48 Hits 453 | . 44 8 65 13 49 6 163 105 Melee 9 | . . . 2 . 4 . 3 . Projectile 444 | . 44 8 63 13 45 6 160 105 AOE 2 | . . 2 . . . . . . Critical Strikes 35 | . . 1 1 . 19 1 10 3 Damage Taken 7532 | . 556 117 802 129 1001 50 2652 2225 Core 889 | . 20 12 58 . 243 . 179 377 Absorbed by Shields . | . . . . . . . . . Ignored by Resistances 179 | . . . . . . . 179 . Regen/Repaired (Parts) 100 | . . . . . . . 100 . Core Remaining (%) 70 | 100 . 87 . . . 24 . . Volleys Fired 375 | 18 67 6 79 15 4 6 131 49 Largest 4 | 1 2 2 4 4 1 4 4 4 Hottest 108 | 50 70 46 92 92 30 92 108 103 Shots Fired 1155 | 18 124 9 299 60 4 24 460 157 Gun 1095 | 18 117 6 295 60 . 24 437 138 Cannon 24 | . . . . . . . 10 14 Launcher 36 | . 7 3 4 . 4 . 13 5 Special . | . . . . . . . . . Kinetic 1076 | . 92 6 295 60 . 24 447 152 Thermal 43 | 18 25 . . . . . . . Explosive 36 | . 7 3 4 . 4 . 13 5 Electromagnetic . | . . . . . . . . . Robot Hit Streak 26 | 4 24 2 19 8 4 5 19 26 Robot Miss Streak 5 | 2 3 1 5 4 1 2 4 3 Penetration Max 1 | . . . . . . . 1 . Secondary Targets 26 | . . . 6 2 . 3 12 3 Max Gunslinging Chain 1 | . . . 1 1 . 1 1 1 Shots Hit Robots 766 | 13 81 3 165 37 23 11 314 119 Core Hits 401 | 3 50 7 75 16 19 8 163 60 Critical Kills 2 | . . . . . . . 1 1 Critical Parts Destroyed 11 | . . . . 1 3 . 4 3 Critical Strikes 22 | 1 3 . . 1 6 . 5 6 Burn 4 | 1 3 . . . . . . . Destroy 10 | . . . . 1 . . 5 4 Blast 1 | . . . . . . . . 1 Smash 6 | . . . . . 6 . . . Sever 1 | . . . . . . . . 1 Melee Attacks 46 | . . . 6 . 27 . . 13 Impact 38 | . . . 6 . 27 . . 5 Slashing 8 | . . . . . . . . 8 Piercing . | . . . . . . . . . Sneak Attacks . | . . . . . . . . . Combat Hostiles . | . . . . . . . . . Follow-up Attacks 5 | . . . . . 4 . . 1 Damage Inflicted 16021 | 164 1667 174 3086 624 997 207 6751 2351 Guns 11135 | 164 1050 49 2697 608 . 177 5124 1266 Cannons 305 | . . . . . . . 73 232 Explosions 3568 | . 615 121 344 . 353 . 1465 670 Melee 827 | . . . . . 644 . . 183 Ramming 186 | . 2 4 45 16 . 30 89 . Kinetic 11076 | . 850 49 2697 608 . 177 5197 1498 Thermal 364 | 164 200 . . . . . . . Explosive 3568 | . 615 121 344 . 353 . 1465 670 Electromagnetic . | . . . . . . . . . Impact 672 | . . . . . 644 . . 28 Slashing 155 | . . . . . . . . 155 Piercing . | . . . . . . . . . Highest Corruption 1 | . . . . . . . . 1 Average Corruption 1 | . . . . . . . . 1 Corruption Purged . | . . . . . . . . . Corruption Blocked . | . . . . . . . . . Overload Shots . | . . . . . . . . . Overflow Damage 153 | . . . . . 93 . 11 49 Projectiles . | . . . . . . . . . Explosions 67 | . . . . . 7 . 11 49 Melee 86 | . . . . . 86 . . . Knockbacks 6 | . . . . . 4 . 1 1 Impact 5 | . . . . . 4 . 1 . Kinetic 1 | . . . . . . . . 1 Secondary . | . . . . . . . . . Self-Inflicted Damage 118 | . 24 . 40 . 48 . 6 . Shots 5 | . 2 . 1 . 1 . 1 . Rammed 30 | . 2 1 5 2 . 5 15 . Targets Rammed 30 | . 2 1 5 2 . 5 15 . Kicked . | . . . . . . . . . Crushed . | . . . . . . . . . Highest Temperature 351 | 52 129 . 218 163 8 130 351 24 Average Temperature 74 | 22 47 . 58 55 4 46 101 10 Received Heat Transfer 2012 | . 192 . 249 33 20 . 1107 411 Effects 5 | . . . . . . . 5 . Energy Bleed 1 | . . . . . . . 1 . Interference 3 | . . . . . . . 3 . Matter Decay 1 | . . . . . . . 1 . Siege Activations . | . . . . . . . . . Martial Activations . | . . . . . . . . . Shielding Activations . | . . . . . . . . . Robots Disrupted . | . . . . . . . . . Combat Hostiles . | . . . . . . . . . Robots Corrupted . | . . . . . . . . . Combat Hostiles . | . . . . . . . . . Parts Fried . | . . . . . . . . . Impact Corruptions 5 | . . . . . 5 . . . Robots Melted 1 | 1 . . . . . . . . Combat Hostiles . | . . . . . . . . . Parts Melted 7 | 4 3 . . . . . . . Heat Transferred 1369 | 555 814 . . . . . . . Parts Sabotaged . | . . . . . . . . . Parts Stolen . | . . . . . . . . . Parts Stripped . | . . . . . . . . . Power Chain Reactions . | . . . . . . . . . Alert | -11 -10 -10 -9 -9 -9 -8 -8 -8 ------- Run | Yrd Mat Min Mat Min Exi Min Mat Gar Maximum Alert Level 4 | . 1 . 1 . . . 3 4 Low Security (%) 70 | 100 63 100 56 100 . 100 66 . Level 1 21 | . 36 . 43 . . . 24 . Level 2 2 | . . . . . . . 4 15 Level 3 5 | . . . . . . . 4 78 Level 4 . | . . . . . . . . 5 Level 5 . | . . . . . . . . . High Security . | . . . . . . . . . Max Security . | . . . . . . . . . Sterilizations 1 | . . . . . . . 1 . Peak Influence 1121 | 5 249 58 387 117 . 90 972 1121 Initial 631 | . . 28 . 117 . . . 631 Average 177 | . 166 9 200 23 . 8 192 880 Influence Increases 4481 | 15 613 93 1108 230 . 128 1744 550 Destroy 0b10 Robot/C 2760 | . 280 60 700 180 . 80 1060 400 Destroy 0b10 Robot/NC 325 | 15 65 5 90 20 . 10 115 5 Destroy Leader 610 | . 70 20 196 30 . 10 264 20 Successful Hack 124 | . 40 . 33 . . . 23 28 Disable Machine 180 | . . . 30 . . 15 135 . Destroy Structure 287 | . 38 8 44 . . 13 102 82 Partial Spotted 15 | . . . 15 . . . . . Lose Combat Pursuer 180 | . 120 . . . . . 45 15 Influence Decreases 3470 | 15 540 166 808 525 5 128 772 511 Entered New Map 574 | . . 45 . 183 5 . . 341 Time Decay 2332 | 15 530 121 658 288 . 128 592 . Lost Part 210 | . 10 . . . . . 30 170 Purge Threat 354 | . . . 150 54 . . 150 . Squads Dispatched 15 | . . . 3 . . . 12 . Investigation 3 | . . . . . . . 3 . Extermination . | . . . . . . . . . Reinforcement 6 | . . . 3 . . . 3 . Assault 3 | . . . . . . . 3 . Garrison 3 | . . . . . . . 3 . Intercept . | . . . . . . . . . Searches Triggered . | . . . . . . . . . Construction Impeded . | . . . . . . . . . Haulers Reinforced . | . . . . . . . . . Active Scanning Responses . | . . . . . . . . . Cargo Convoy Interrupts . | . . . . . . . . . Stealth | -11 -10 -10 -9 -9 -9 -8 -8 -8 --------- Run | Yrd Mat Min Mat Min Exi Min Mat Gar Distress Signals 12 | . 4 . 3 . . . 5 . Communications Jammed . | . . . . . . . . . Distress Signals . | . . . . . . . . . Times Spotted 216 | . 27 4 52 8 8 4 91 22 Peak Tracking Total 11 | . 6 3 5 4 9 4 11 6 Tactical Retreats 8 | . 5 . . . . . 2 1 Traps | -11 -10 -10 -9 -9 -9 -8 -8 -8 ------- Run | Yrd Mat Min Mat Min Exi Min Mat Gar Traps Triggered 7 | . 1 . 4 . . . . 2 Indirectly . | . . . . . . . . . Trap Hack Attempts . | . . . . . . . . . Triggered . | . . . . . . . . . Disarmed . | . . . . . . . . . Reprogrammed . | . . . . . . . . . Reused 2 | . . . . . 2 . . . Traps Extracted . | . . . . . . . . . Installed 2 | . . . . . 2 . . . Triggered . | . . . . . . . . . Most Traps Carried 2 | . . . . 2 2 . . . Machines | -11 -10 -10 -9 -9 -9 -8 -8 -8 ---------- Run | Yrd Mat Min Mat Min Exi Min Mat Gar Machines Disabled 15 | . . . 2 . 3 1 9 . Max in Single Turn 2 | . . . 1 . 1 1 2 . Machines Repaired . | . . . . . . . . . Machines Dismantled . | . . . . . . . . . Machines Sabotaged . | . . . . . . . . . Overloaded Fab Kills . | . . . . . . . . . Hacking | -11 -10 -10 -9 -9 -9 -8 -8 -8 --------- Run | Yrd Mat Min Mat Min Exi Min Mat Gar Machines Accessed 37 | . 11 . 10 1 . . 13 2 Terminals 30 | . 8 . 9 1 . . 10 2 Fabricators . | . . . . . . . . . Repair Stations 2 | . 1 . . . . . 1 . Recycling Units 3 | . 2 . . . . . 1 . Scanalyzers 1 | . . . 1 . . . . . Garrison Access 1 | . . . . . . . 1 . Total Hacks 122 | . 39 . 36 3 . . 39 5 Successful 69 | . 26 . 22 2 . . 17 2 Failed 53 | . 13 . 14 1 . . 22 3 Catastrophic 5 | . 1 . 1 . . . 3 . Database Lockouts . | . . . . . . . . . Manual 88 | . 37 . 28 5 . . 18 . Terminals 101 | . 30 . 33 3 . . 30 5 Fabricators . | . . . . . . . . . Repair Stations 5 | . 1 . . . . . 4 . Recycling Units 12 | . 8 . . . . . 4 . Scanalyzers 3 | . . . 3 . . . . . Garrison Access 1 | . . . . . . . 1 . Terminal Hacks 28 | . 10 . 10 2 . . 4 2 Part Schematic 6 | . 6 . . . . . . . Robot Analysis 5 | . 2 . 3 . . . . . Prototype ID Bank 2 | . 1 . 1 . . . . . Emergency Access Points 1 | . . . . . . . . 1 Recycling Unit Index 1 | . . . 1 . . . . . Alert Level 6 | . . . 3 1 . . 2 . Unreport Threat 3 | . . . 1 1 . . 1 . Hauler Manifests 3 | . 1 . 1 . . . 1 . Patrol Navigation 1 | . . . . . . . . 1 Fabricator Hacks . | . . . . . . . . . Repair Station Hacks 5 | . 1 . . . . . 4 . Scan Component 2 | . . . . . . . 2 . Repair 2 | . . . . . . . 2 . Refit 1 | . 1 . . . . . . . Recycling Unit Hacks 1 | . . . . . . . 1 . Retrieve Components 1 | . . . . . . . 1 . Scanalyzer 2 | . . . 2 . . . . . Insert Component 1 | . . . 1 . . . . . Analyze 1 | . . . 1 . . . . . Garrison Access Hacks 1 | . . . . . . . 1 . Unlock Access 1 | . . . . . . . 1 . Unauthorized Hacks 32 | . 15 . 10 . . . 7 . Terminals 24 | . 10 . 10 . . . 4 . Botnet 11 | . 4 . 5 . . . 2 . Skim 13 | . 6 . 5 . . . 2 . Fabricators . | . . . . . . . . . Repair Stations . | . . . . . . . . . Recycling Units 8 | . 5 . . . . . 3 . Monitor 1 | . 1 . . . . . . . Reject 3 | . 2 . . . . . 1 . Recyclers 2 | . 1 . . . . . 1 . Mask 2 | . 1 . . . . . 1 . Scanalyzers . | . . . . . . . . . Garrison Access . | . . . . . . . . . Data Cores Recovered 1 | . . . . . . . 1 . Used . | . . . . . . . . . Hacking Detections 31 | . 10 . 9 1 . . 10 1 Full Trace Events 3 | . . . . . . . 3 . Feedback Events . | . . . . . . . . . Feedback Blocked . | . . . . . . . . . Robot Schematics Acquired . | . . . . . . . . . Robots Built . | . . . . . . . . . Authchips . | . . . . . . . . . Time . | . . . . . . . . . Total Robot Build Rating . | . . . . . . . . . Part Schematics Acquired 6 | . 5 . 1 . . . . . Parts Built . | . . . . . . . . . Authchips . | . . . . . . . . . Time . | . . . . . . . . . Total Part Build Rating . | . . . . . . . . . Parts Repaired 2 | . . . . . . . 2 . Time 76 | . . . . . . . 76 . Parts Recycled . | . . . . . . . . . Recycled Matter . | . . . . . . . . . Retrieved Matter . | . . . . . . . . . Retrieved Components . | . . . . . . . . . Parts Scanalyzed 1 | . . . 1 . . . . . Part Schematics Acquired 1 | . . . 1 . . . . . Parts Damaged . | . . . . . . . . . Bothacking | -11 -10 -10 -9 -9 -9 -8 -8 -8 ------------ Run | Yrd Mat Min Mat Min Exi Min Mat Gar Used RIF Installer . | . . . . . . . . . Robots Hacked . | . . . . . . . . . Non-combat . | . . . . . . . . . Combat . | . . . . . . . . . Robot Hacks Applied . | . . . . . . . . . Relay Couplers Released . | . . . . . . . . . Fabnet Peak Effective % . | . . . . . . . . . Robots Rewired . | . . . . . . . . . Allies Hacked . | . . . . . . . . . Hacks Repelled . | . . . . . . . . . Allies | -11 -10 -10 -9 -9 -9 -8 -8 -8 -------- Run | Yrd Mat Min Mat Min Exi Min Mat Gar Total Allies . | . . . . . . . . . Largest Group . | . . . . . . . . . Highest-Rated Group . | . . . . . . . . . Highest-Rated Ally . | . . . . . . . . . Total Orders . | . . . . . . . . . Ally Attacks . | . . . . . . . . . Total Damage . | . . . . . . . . . Kills . | . . . . . . . . . Allies Corrupted . | . . . . . . . . . Allies Melted . | . . . . . . . . . Intel | -11 -10 -10 -9 -9 -9 -8 -8 -8 ------- Run | Yrd Mat Min Mat Min Exi Min Mat Gar Active Infowar (turns) 2317 | 14 1588 711 2 2 . . . . Sensors 2 | . . . . 2 . . . . Seismic 2315 | 14 1588 711 2 . . . . . Robot Analysis Total 5 | . 2 . 3 . . . . . Derelict Logs Recovered 3 | . . 1 . 2 . . . . Drone Launches . | . . . . . . . . . Drone Recoveries . | . . . . . . . . . Exploration | -11 -10 -10 -9 -9 -9 -8 -8 -8 ------------- Run | Yrd Mat Min Mat Min Exi Min Mat Gar Turns Passed 13727 | 145 1589 711 3362 1804 515 1414 3403 784 Spaces Moved 5371 | 60 800 415 1225 719 180 573 1107 292 Core 2 | 1 . . 1 . . . . . Treads 5362 | 59 800 415 1224 719 173 573 1107 292 Legs . | . . . . . . . . . Wheels 7 | . . . . . 7 . . . Hover . | . . . . . . . . . Flight . | . . . . . . . . . Fastest Speed 50 | 50 160 160 160 240 145 240 160 160 Average Speed 218 | 158 160 160 237 240 236 240 241 191 Slowest Speed 650 | 160 160 160 650 240 240 240 250 246 Overloaded Moves . | . . . . . . . . . Propulsion Burnouts . | . . . . . . . . . Robots Hopped . | . . . . . . . . . Potential Cave-ins . | . . . . . . . . . Cave-ins Triggered . | . . . . . . . . . Exploration Rate (%) 68 | 7 94 81 96 98 13 98 88 38 Regions Visited 8 Branch Regions 4 Pre-discovered Areas 3 | . 2 . . 1 . . . . Known Exits Taken 4 | . . 1 1 . . 1 1 . Unknown Exits Taken 4 | 1 1 . . 1 1 . . . Scrap Searched 5 | . . 3 . 1 . 1 . . Spaces Dug 10 | . . . 3 . . . 3 4 Terrain Destroyed 315 | . 38 8 42 . 34 13 108 72 Melee 7 | . . . 3 . . . . 4 Projectile 5 | . . . . . . . 5 . AOE 303 | . 38 8 39 . 34 13 103 68 Terrain Rammed . | . . . . . . . . . Walls Destroyed . | . . . . . . . . . Machines Disabled . | . . . . . . . . . Actions | -11 -10 -10 -9 -9 -9 -8 -8 -8 --------- Run | Yrd Mat Min Mat Min Exi Min Mat Gar Total 6538 | 89 988 452 1493 765 228 589 1536 398 Wait 387 | 2 79 29 72 12 . . 184 9 Move 5364 | 59 799 414 1224 718 179 572 1107 292 Hop . | . . . . . . . . . Pick Up 77 | 3 15 . 19 6 4 2 22 6 Fast Attach 35 | 7 3 . 9 2 1 . 9 4 Attach 26 | . 1 . 2 . 4 . 7 12 Detach 5 | . 1 . 1 1 1 . . 1 Swap 92 | . 12 2 34 1 6 4 27 6 Drop 106 | . 9 . 42 8 6 . 34 7 Fire 375 | 18 67 6 79 15 4 6 131 49 Melee 39 | . . . 6 . 21 . . 12 Ram . | . . . . . . . . . Kick . | . . . . . . . . . Crush 30 | . 2 1 5 2 . 5 15 . Escape Stasis . | . . . . . . . . . Rewire . | . . . . . . . . . Trap 2 | . . . . . 2 . . . Miscellaneous . | . . . . . . . . . Route ------- -11/Scrapyard -10/Materials (discovered 6 exits: *Mat x3 / [*Min x2] / *Sub) -10/Mines (discovered 3 exits: *Mat x2 / *Sub) -9/Materials (discovered 5 exits: *Mat x3 / *Min x2) -9/Mines (discovered 3 exits: *Mat x2 / [*Exi]) -9/Exiles -8/Mines (discovered 2 exits: *Mat x2) -8/Materials (discovered 3 exits: [*Fac x2] / Gar) -8/Garrison (discovered 1 exit: [*Mat]) History --------- Turn | Location | Event 9 | -11/Scrapyard | Discovered new exit (range 16) 146 | -11/Scrapyard | Entered Materials 309 | -10/Materials | Build established: Mutant 425 | -10/Materials | Discovered new exit (range 5) 448 | -10/Materials | Discovered new exit (range 13) 556 | -10/Materials | Discovered new exit (range 12) 746 | -10/Materials | Derelicts attacked the area 1111 | -10/Materials | Discovered new exit (range 4) 1267 | -10/Materials | Discovered new exit (range 9) 1340 | -10/Materials | Learned Storage stockpile data 1399 | -10/Materials | Identified exit to Materials 1449 | -10/Materials | Learned location of Mines (-10) 1491 | -10/Materials | Learned 2 Storage zone layouts 1523 | -10/Materials | Learned location of 2 exits from Mines 1559 | -10/Materials | Identified exit to Subcaves 1650 | -10/Materials | Learned location of Recycling (-7) 1735 | -10/Materials | Entered Mines 1855 | -10/Mines | Learned 2 Materials zone layouts 1924 | -10/Mines | Assembled infested the area 2446 | -10/Mines | Entered Materials 2446 | -9/Materials | Evolved 2 slots: Weapon x2 2447 | -9/Materials | Identified exit to Mines 2728 | -9/Materials | Build established: Tank 3027 | -9/Materials | Discovered exit to Mines (range 11) 3047 | -9/Materials | Build established: Scavenger-Tank 3754 | -9/Materials | Discovered new exit (range 3) 4070 | -9/Materials | Discovered new exit (range 16) 4719 | -9/Materials | Discovered new exit (range 15) 4869 | -9/Materials | Build established: Tank 5147 | -9/Materials | Learned location of 1 exit from Storage 5207 | -9/Materials | Learned Storage stockpile data 5257 | -9/Materials | Learned Storage garrison access intel 5808 | -9/Materials | Entered Mines 5809 | -9/Mines | Identified exit to Materials 5848 | -9/Mines | Learned location of Zion (-6) 5913 | -9/Mines | Learned 2 Materials zone layouts 6074 | -9/Mines | Joined a pair of Derelicts in attacking an 0b10 outpost 6163 | -9/Mines | Found a damaged Exp. Sensor Array with a note attached 6168 | -9/Mines | Found Prototype Device 6168 | -9/Mines | Identified Exp. Sensor Array 6385 | -9/Mines | Deemed a non-threat by the Exiles lab entrance 7230 | -9/Mines | Found a hidden stash of uninstalled traps 7602 | -9/Mines | Discovered new exit (range 5) 7612 | -9/Mines | Entered Exiles 7658 | -9/Exiles | Discovered new exit (range 15) 7794 | -9/Exiles | Met 8R-AWN 7829 | -9/Exiles | Warned about trapping Exiles lab 7926 | -9/Exiles | Attacked by the Exiles 8000 | -9/Exiles | Core integrity fell below 50% 8033 | -9/Exiles | Lost 4 parts (3n1w) 8049 | -9/Exiles | Destroyed 8R-AWN 8127 | -9/Exiles | Entered Mines 8591 | -8/Mines | Discovered exit to Materials (range 6) 8666 | -8/Mines | Build established: Scavenger-Tank 8844 | -8/Mines | Discovered exit to Materials (range 11) 9541 | -8/Mines | Entered Materials 9541 | -8/Materials | Evolved 2 slots: Propulsion x1, Utility x1 10830 | -8/Materials | Discovered new exit (range 9) 11522 | -8/Materials | Build established: Tank 11571 | -8/Materials | Repaired Hvy. Laser 11604 | -8/Materials | Repaired Rnf. Ion Engine 11776 | -8/Materials | Discovered new exit (range 4) 12139 | -8/Materials | Build established: Scavenger-Tank 12658 | -8/Materials | Garrison activated, responded to threat 12741 | -8/Materials | First assault squad dispatched 12837 | -8/Materials | Destroyed 14 combat bots 12850 | -8/Materials | Sterilization system engaged 12850 | -8/Materials | Non-combat units ordered to evacuate 12868 | -8/Materials | Lost 3 parts (1n2w) 12944 | -8/Materials | Identified exit to Garrison 12944 | -8/Materials | Entered Garrison 13054 | -8/Garrison | Triggered checkpoint 13136 | -8/Garrison | Build established: Gunner 13273 | -8/Garrison | Triggered checkpoint 13423 | -8/Garrison | Discovered new exit (range 15) 13534 | -8/Garrison | Build established: Scavenger-Gunner 13619 | -8/Garrison | Spotted B-75 Beast 13675 | -8/Garrison | Core integrity fell below 50% 13697 | -8/Garrison | Core integrity fell below 20% 13728 | -8/Garrison | Destroyed by B-75 Beast with Heavy Plasma Cannon Last Messages --------------- (Destroy). 13681_ Destroyed Mic. Nuclear Core. 13685_ Dropped Hcp. Matter Pod. 13686_ Extracted 200 matter. 13686_ P-60 Hacker destroyed. 13686_ Switching to secondary target: B-75 Beast. 13686_ Hpw. Shotgun destroyed. 13690_ Imp. Deuterium Engine destroyed. 13690_ Cooling System destroyed. 13696_ Imp. Assault Rifle destroyed. 13699_ Lgt. Treads blasted off. 13702_ Hvy. Assault Rifle destroyed. 13705_ Imp. Ion Engine destroyed. 13712_ Hvy. Assault Rifle destroyed. 13718_ Imp. Medium Armor Plating destroyed. 13718_ B-75 Beast Imp. Medium Treads severed. 13718_ Great Maul follow-up attack on B-75 Beast. 13720_ Med. Treads destroyed. Map ----- +----------------------------------------------------+ | ????????????????????????###??????????????????????? | | ????????????????????????!"""?????????????????????? | | ???????????????????+???? ??????????????????????? | | ?????????????????+??+??# ??????????????????????? | | ??????????????????????? ??????????????????????? | | ?????????????????+??+??# ??????????????????????? | | ???????????????????+???# ???????????????????+??? | | ???????????????????????# #??????????????????????? | | +???????+??????????????# #??????????????????????? | | ???????????????????????# #??????????????????????? | | ???????????????????##??# #??????????????????????? | | ??????????????????? #?# #????????????????+?????? | | ???????????????????# #?# #??????????????????????? | | ???????????????????# #?# #??????????????????????? | | ????????????????+??# #?# #??????????????????????? | | ??????????????????# #?# #??????????????????????? | | ########??????????# #?#% #??????????????????????? | | %=# ########+### ###""#####??????????????????? | | = [ =%[ !% #???????????????+??? | | = *=% % ! #??????????????????? | | % =! #??????????????????? | | # #########+#T# ### # #??????????????????? | | # #???????? ### #?#### #????????+??????+??? | | # ## ###???????# #?# #????# #??????????????????? | | ##?# #?????????# #?#%#####BB #??????????????????? | | ???# #???###???# ?+%p%%!@BB #???????????????+??? | | ???# #???# #???# #?######## #??????????????????? | | ???# #?###"###?# #????????# #?????????+????????? | | ???# #?#!!!]]#?# #????????# #??????????????????? | | ???# #?#! !]]#?# #????????# #??????????????????? | | ???# ### !*[ ### #????????# #??????????????????? | | ???# + ^+ #????????# ##""""## ##???????? | | ???##### ! ### ########## #???+???? | | ???????#[[=]]#?# " ??????? | | ???????#[[ ]]#?####### #### ??????? | | ???????###"###???????# #??# ## ## #???????? | | ?????????# #?????????# #### ## ## #???????? | | ?????????###?????????# + "???????? | | ?????????????????????#### "???????? | | ????????????????????????# "???????? | | ????????????????????????# "???????? | | ??????????????????????#####[ ## ## #???????? | | ????????????????####### = ! ## ## #???????? | | ????????????????# = ?????? | | ????????????????# ** ?????? | | ????????????????# ### # =* #??+????? | | ????????????????# #?# ##### #""""## ##???????? | | ????????????????# #?# ##### #?????????????????? | | ????????????????# #?# #???# ##???????????????+?? | | ????????????????# #?# #???# #??????????????????? | +----------------------------------------------------+ Best States ------------- Heat Dissipation 53 Energy Generation 16 Energy Capacity 290 Matter Stores 300 Matter Capacity 300 Sight Range 16 Robot Scan Range 20 Terrain Scan Density 10 Armor Coverage 375 Resistance: KI 20 Evasion (%) 40 Melee Accuracy 5 Target Analysis 5 Recoil Reduction 3 Item Schematics ----------------- Huge Storage Unit | -10/Materials | Hacked Seismic Detector | -10/Materials | Hacked Lgt. Armor Plating | -10/Materials | Hacked Lgt. Treads | -10/Materials | Hacked Hcp. Matter Pod | -10/Materials | Hacked Imp. Heat Sink | -9/Materials | Scanalyzed Robot Schematics ------------------ None Fabricated ------------ Nothing Repaired ---------- Hvy. Laser | 83% | -8/Materials Rnf. Ion Engine | 38% | -8/Materials Alien Tech Used ----------------- None Achievements -------------- None Challenges ------------ None Game ------ Seed TeslaSpikedStorage Manual? 0 Play Time 01:06:01 Cumulative 256.3 hours Start 2025.10.19 @ 14:56:59 End 2025.10.19 @ 16:01:12 Sessions 1 Manual Loads 0 Difficulty Rogue Special Mode None Game No. 134 Rogue 134 Adventurer 0 Explorer 0 Win Type - Total 5 Types 5/0/0/0/0/0/0/0/0/0 Lore% 55 Gallery% 64 Achievement% 57 Wizard Run 0 Options --------- Layout 1 ASCII 0 Keyboard 0 Movement Numpad Keybinds 0 Fullscreen 1 Font 24/Smallcaps Map View 50x35 Zoom Use 0% Tactical HUD 1 Map Filters NONE Filters NONE Steam 1 RUN: ed3f307e-183f-4d83-bfeb-3d25c020667e